Cogmind - Beta 13 @@@ ROGUE MODE // 2024.05.22 @ 13:32:48 Player: ROOK Result: Destroyed by G-34 Mercenary with Small Laser Performance ------------- Evolutions (0) 0 Regions Visited (1) 200 Robots Destroyed (8) 40 Value Destroyed (165) 165 Prototype IDs (0) 0 Alien Tech Used (0) 0 Bonus (0) 0 TOTAL SCORE: 405 Bonus ------- None Cogmind --------- Core Integrity 0/250 Matter 179/300 Energy 89/100 System Corruption 0% Temperature Hot (202) Movement Core (50) Location -10/Materials Parts ------- > --- POWER (1) -------- (None) > --- PROPULSION (2) --- (None) > --- UTILITY (2) ------ (None) > --- WEAPON (2) ------- Particle Gun > --- INVENTORY (5) ---- Light Ion Engine Light Assault Rifle Light Assault Rifle Peak State ------------ > --- POWER ------------ Ion Engine > --- PROPULSION ------- Aluminum Leg Aluminum Leg > --- UTILITY ---------- Heat Sink Seismic Detector > --- WEAPON ----------- Assault Rifle Assault Rifle > --- INVENTORY -------- Light Ion Engine Aluminum Leg Light Assault Rifle Light Assault Rifle [Rating: 7] Favorites ----------- Power Ion Engine Engine Ion Engine Propulsion Aluminum Leg Leg Aluminum Leg Utility Seismic Detector Device Seismic Detector Weapon Assault Rifle Energy Gun Particle Gun Ballistic Gun Assault Rifle Ballistic Cannon Light Cannon Build | -11 -10 ------- Run | Yrd Mat Slots Evolved . | . . Power . | . . Propulsion . | . . Utility . | . . Weapon . | . . Parts Attached 15 | 6 9 Power 2 | 2 . Engine 2 | 2 . Core . | . . Reactor . | . . Propulsion 4 | 2 2 Treads . | . . Leg 4 | 2 2 Wheel . | . . Hover . | . . Flight . | . . Utility 2 | . 2 Device 2 | . 2 Storage . | . . Processor . | . . Hackware . | . . Protection . | . . Artifact . | . . Weapon 7 | 2 5 Energy Gun 1 | . 1 Energy Cannon . | . . Ballistic Gun 5 | 2 3 Ballistic Cannon 1 | . 1 Launcher . | . . Special Weapon . | . . Impact Weapon . | . . Slashing Weapon . | . . Piercing Weapon . | . . Special Melee Weapon . | . . Unidentified Prototypes . | . . Parts Lost 10 | . 10 Power 1 | . 1 Propulsion 4 | . 4 Utility 2 | . 2 Weapon 3 | . 3 Highest Loss Streak 10 | . 10 To Critical Strikes . | . . Average Slot Usage (%) 72 | . 72 Engine 11 | . 11 Leg 25 | . 25 Device 8 | . 8 Energy Gun 2 | . 2 Ballistic Gun 22 | . 22 Ballistic Cannon 1 | . 1 Naked Turns . | . . Heaviest Build 11 | 7 11 Greatest Support 20 | 20 20 Greatest Overweight (x) 1 | . 1 Average Overweight (x) . | . . Largest Inventory Capacity 5 | 5 5 Average Capacity 5 | 5 5 Most Carried 5 | 4 5 Average Carried 3 | 1 4 Final Capacity 5 | 5 5 Final Carried 4 | 4 3 Class Distribution -------------------- 100% | Mutant Dominant Class ---------------- Mutant | -10/Materials Resources | -11 -10 ----------- Run | Yrd Mat Matter Collected 345 | 258 87 Remotely . | . . Salvage Created 167 | 32 135 Parts 22 | 3 19 Haulers Intercepted . | . . Recyclers Shooed . | . . Parts Field Recycled . | . . Retrieved Matter . | . . Parts Self-Destructed . | . . Prevented . | . . Kills | -11 -10 ------- Run | Yrd Mat Combat Hostiles Destroyed 8 | 1 7 Guns 8 | 1 7 Classes Destroyed 2 | 1 1 Swarmer 5 | . 5 Grunt 3 | 1 2 Best Kill Streak 3 | 1 3 Combat Bots Only 3 | 1 3 Max Kills in Single Turn 1 | 1 1 Gunslinging . | . . Exploded . | . . Melee . | . . Uniques/NPCs Destroyed . | . . Combat | -11 -10 -------- Run | Yrd Mat Hostile Shots Fired 165 | 7 158 Missed 51 | 4 47 Damage Taken 1090 | 34 1056 Core 254 | . 254 Absorbed by Shields . | . . Core Remaining (%) 100 | 100 . Volleys Fired 41 | 4 37 Largest 2 | 2 2 Hottest 85 | 40 85 Shots Fired 71 | 8 63 Gun 63 | 8 55 Cannon 8 | . 8 Launcher . | . . Special . | . . Kinetic 58 | 8 50 Thermal 13 | . 13 Explosive . | . . Electromagnetic . | . . Robot Hit Streak 13 | 3 13 Robot Miss Streak 3 | 3 3 Penetration Max . | . . Secondary Targets 2 | . 2 Max Gunslinging Chain 1 | . 1 Shots Hit Robots 45 | 5 40 Core Hits 13 | 2 11 Critical Kills . | . . Critical Parts Destroyed . | . . Critical Strikes 1 | . 1 Blast 1 | . 1 Melee Attacks . | . . Impact . | . . Slashing . | . . Piercing . | . . Sneak Attacks . | . . Combat Hostiles . | . . Follow-up Attacks . | . . Damage Inflicted 658 | 40 618 Guns 534 | 40 494 Cannons 124 | . 124 Explosions . | . . Melee . | . . Ramming . | . . Kinetic 537 | 40 497 Thermal 121 | . 121 Explosive . | . . Electromagnetic . | . . Impact . | . . Slashing . | . . Piercing . | . . Highest Corruption . | . . Average Corruption . | . . Corruption Purged . | . . Corruption Blocked . | . . Overload Shots . | . . Overflow Damage . | . . Projectiles . | . . Explosions . | . . Melee . | . . Knockbacks 2 | . 2 Impact . | . . Kinetic 2 | . 2 Secondary . | . . Self-Inflicted Damage . | . . Shots . | . . Rammed . | . . Targets Rammed . | . . Kicked . | . . Crushed . | . . Highest Temperature 196 | 6 196 Average Temperature 68 | 6 74 Received Heat Transfer 318 | 18 300 Siege Activations . | . . Robots Corrupted . | . . Combat Hostiles . | . . Parts Fried . | . . Impact Corruptions . | . . Robots Melted . | . . Combat Hostiles . | . . Parts Melted . | . . Heat Transferred 296 | . 296 Parts Sabotaged . | . . Parts Stolen . | . . Parts Stripped . | . . Power Chain Reactions . | . . Alert | -11 -10 ------- Run | Yrd Mat Peak Influence 178 | 20 178 Initial 13 | . 13 Average 73 | 4 101 Maximum Alert Level . | . . Low Security (%) 100 | 100 100 Level 1 . | . . Level 2 . | . . Level 3 . | . . Level 4 . | . . Level 5 . | . . High Security . | . . Max Security . | . . Squads Dispatched 2 | . 2 Investigation 1 | . 1 Extermination . | . . Reinforcement 1 | . 1 Assault . | . . Garrison . | . . Intercept . | . . Searches Triggered . | . . Construction Impeded . | . . Haulers Reinforced . | . . Active Scanning Responses . | . . Cargo Convoy Interrupts . | . . Stealth | -11 -10 --------- Run | Yrd Mat Distress Signals 1 | . 1 Communications Jammed . | . . Distress Signals . | . . Times Spotted 17 | 1 16 Peak Tracking Total 8 | 1 8 Tactical Retreats . | . . Traps | -11 -10 ------- Run | Yrd Mat Traps Triggered 1 | . 1 Indirectly . | . . Trap Hack Attempts . | . . Triggered . | . . Disarmed . | . . Reprogrammed . | . . Reused . | . . Traps Extracted . | . . Installed . | . . Triggered . | . . Machines | -11 -10 ---------- Run | Yrd Mat Machines Disabled . | . . Max in Single Turn . | . . Machines Repaired . | . . Machines Dismantled . | . . Machines Sabotaged . | . . Overloaded Fab Kills . | . . Hacking | -11 -10 --------- Run | Yrd Mat Machines Accessed . | . . Terminals . | . . Fabricators . | . . Repair Stations . | . . Recycling Units . | . . Scanalyzers . | . . Garrison Access . | . . Total Hacks . | . . Successful . | . . Failed . | . . Catastrophic . | . . Database Lockouts . | . . Manual . | . . Terminals . | . . Fabricators . | . . Repair Stations . | . . Recycling Units . | . . Scanalyzers . | . . Garrison Access . | . . Terminal Hacks . | . . Fabricator Hacks . | . . Repair Station Hacks . | . . Recycling Unit Hacks . | . . Scanalyzer . | . . Garrison Access Hacks . | . . Unauthorized Hacks . | . . Terminals . | . . Fabricators . | . . Repair Stations . | . . Recycling Units . | . . Scanalyzers . | . . Garrison Access . | . . Data Cores Recovered . | . . Used . | . . Hacking Detections . | . . Full Trace Events . | . . Feedback Events . | . . Feedback Blocked . | . . Robot Schematics Acquired . | . . Robots Built . | . . Authchips . | . . Time . | . . Total Robot Build Rating . | . . Part Schematics Acquired . | . . Parts Built . | . . Authchips . | . . Time . | . . Total Part Build Rating . | . . Parts Repaired . | . . Time . | . . Parts Recycled . | . . Recycled Matter . | . . Retrieved Matter . | . . Retrieved Components . | . . Parts Scanalyzed . | . . Part Schematics Acquired . | . . Parts Damaged . | . . Bothacking | -11 -10 ------------ Run | Yrd Mat Used RIF Installer . | . . Robots Hacked . | . . Non-combat . | . . Combat . | . . Robot Hacks Applied . | . . Relay Couplers Released . | . . Fabnet Peak Effective % . | . . Robots Rewired . | . . Allies Hacked . | . . Hacks Repelled . | . . Allies | -11 -10 -------- Run | Yrd Mat Total Allies . | . . Largest Group . | . . Highest-Rated Group . | . . Highest-Rated Ally . | . . Total Orders . | . . Ally Attacks . | . . Total Damage . | . . Kills . | . . Allies Corrupted . | . . Allies Melted . | . . Intel | -11 -10 ------- Run | Yrd Mat Robot Analysis Total . | . . Derelict Logs Recovered . | . . Drone Launches . | . . Drone Recoveries . | . . Exploration | -11 -10 ------------- Run | Yrd Mat Turns Passed 466 | 134 332 Spaces Moved 271 | 96 175 Core 26 | 22 4 Treads . | . . Legs 245 | 74 171 Wheels . | . . Hover . | . . Flight . | . . Fastest Speed 50 | 50 50 Average Speed 113 | 103 118 Slowest Speed 120 | 120 120 Overloaded Moves . | . . Propulsion Burnouts . | . . Robots Hopped . | . . Cave-ins Triggered . | . . Exploration Rate (%) 19 | 9 29 Regions Visited 1 Branch Regions . Pre-discovered Areas . | . . Known Exits Taken . | . . Unknown Exits Taken 1 | 1 . Scrap Searched . | . . Spaces Dug . | . . Terrain Destroyed . | . . Melee . | . . Projectile . | . . AOE . | . . Terrain Rammed . | . . Walls Destroyed . | . . Machines Disabled . | . . Actions | -11 -10 --------- Run | Yrd Mat Total 356 | 123 233 Wait 19 | 9 10 Move 270 | 95 175 Hop . | . . Pick Up 11 | 9 2 Fast Attach 3 | . 3 Attach 8 | 5 3 Detach . | . . Swap 4 | 1 3 Drop . | . . Fire 41 | 4 37 Melee . | . . Ram . | . . Kick . | . . Crush . | . . Escape Stasis . | . . Rewire . | . . Trap . | . . Miscellaneous . | . . Route ------- -11/Scrapyard -10/Materials History --------- Turn | Location | Event 2 | -11/Scrapyard | Met Revision 17 78 | -11/Scrapyard | Discovered new exit (range 8) 135 | -11/Scrapyard | Entered Materials 347 | -10/Materials | Build established: Mutant 426 | -10/Materials | Core integrity fell below 50% 450 | -10/Materials | Core integrity fell below 20% 467 | -10/Materials | Destroyed by G-34 Mercenary with Small Laser Last Messages --------------- Assault Rifle destroyed. Ion Engine destroyed. Acquired Particle Gun. Acquired 28 matter. Seismic Detector destroyed. Heat Sink destroyed. Acquired Aluminum Leg. Aluminum Leg destroyed. Lgt. Cannon destroyed. Aluminum Leg destroyed. S-10 Pest destroyed. Assault Rifle destroyed. G-34 Mercenary destroyed. K-01 Serf collects debris. Acquired 19 matter. K-01 Serf collects debris. S-10 Pest destroyed. K-01 Serf collects debris. Aluminum Leg destroyed. K-01 Serf collects debris. Map ----- +----------------------------------------------------+ | ?????????? ?????????????????????????????????????? | | ???????? ?????????????????????????????????????? | | ???????? ?????????????????????????????????????? | | ???????# ????????? ?????????????????????????? | | ? ?????# #???????? #????????????????????????? | | ? ##### ???????# ????????????????????????? | | ???????# ????????????????????????? | | #??????# ????????????????????????? | | " #??????# #????????????????????????? | | T #??????# #????????????????????????? | | " #??????# #????????????????????????? | | #??????# #????????????????????????? | | #??????# ####?????????????????????? | | #??????# !##????????????????????? | | %*######## !#????????????????????? | | ????"""" ! [%= !#????????????????????? | | ????"""" % *% = !#????????????????????? | | ???""""" % !#????????????????????? | | !##????????????????????? | | ####?????????????????????? | | #########* #????????????????????????? | | # #%= #????????????????????????? | | ######### # #[ #????????????????????????? | | ????????# # """"" # #????????????????????????? | | ????????# # """"" #k !###############??????????? | | ????????# # """"" # [%@ ????????? | | ????????# # """"" + ag[[ ????????? | | ????????+ ?# """"" # % t ????????? | | ????????# ?# """"" # ################?????????? | | ????????+ ?# """"" # #?# #??????????? | | ??????????+?# # #?# """ #??????????? | | ????????????# # #?# """"" #??????????? | | ????????????######### #?# """"" #??????????? | | ????????????????????# #?# """"" #??????????? | | ????????????????????# #?# """ #??????????? | | ????????????????????# #?# #??????????? | | ????????????????????# ####+###+######??????????? | | ????????????????????# #??????????????? | | ????????????????????# ####### #??????????????? | | ????????????????????# # ?? # #??????????????? | | ????????????????????# # ""? # #??????????????? | | ????????????????????# # """ # #??????????????? | | ????????????????????# # """ # #??????????????? | | ????????????????????# # # #??????????????? | | ????????????????????# # """ # #??##??????????? | | ????????????????????# # """ # #? ##?????????? | | ?????????????????#### #=""" # #? #?????????? | | ?????????????????# # # = # # #?????????? | | ?????????????????# #==* # # #?????????? | | ????????????????????# + [[ # #?????????? | +----------------------------------------------------+ Best States ------------- Heat Dissipation 35 Energy Generation 10 Energy Capacity 250 Matter Stores 300 Matter Capacity 300 Sight Range 16 Terrain Scan Density 10 Evasion (%) 55 Item Schematics ----------------- None Robot Schematics ------------------ None Fabricated ------------ Nothing Alien Tech Used ----------------- None Achievements -------------- None Challenges ------------ None Game ------ Seed PoweredReflectiveCore Manual? 0 Play Time 00:12:08 Cumulative 1.6 hours Start 2024.05.22 @ 13:20:55 End 2024.05.22 @ 13:32:48 Sessions 1 Manual Loads 0 Difficulty Rogue Special Mode None Game No. 3 Rogue 3 Adventurer 0 Explorer 0 Win Type - Total 0 Types 0/0/0/0/0/0/0/0/0 Lore% 1 Gallery% 3 Achievement% 4 Wizard Run 0 Options --------- Layout 0 ASCII 0 Keyboard 0 Movement Mouse Keybinds 0 Fullscreen 1 Font 24/Smallcaps Map View 38x25 Zoom Use 98% Tactical HUD 0 Map Filters NONE Filters NONE Steam 1 RUN: 5e175017-147a-4098-b9af-7afa86f509c9